bitfinex/quotes_ETHUSD_20251011
["timestamp","ask_amount","ask_price","bid_price","bid_amount"]
[1760190219511,0.001,3814.3,3814.2,2.84624715]
[1760190219693,0.001,3814.3,3814.2,3.31374715]
[1760190219896,0.001,3814.3,3814.2,17.81374715]
[1760190220104,0.001,3814.3,3814.2,19.89692249]
[1760190221814,0.001,3814.3,3814.2,21.81692249]
[1760190222004,0.001,3814.3,3814.2,21.94732249]
[1760190222502,0.001,3814.6,3814.2,21.94732249]
[1760190222503,0.001,3814.6,3814.5,2.62157556]
[1760190222702,0.001,3814.6,3814.5,4.55463511]
[1760190222878,0.001,3816.4,3814.9,2.62130068]
[1760190223080,0.001,3816.4,3815.5,2.62088848]
[1760190223285,0.001,3816.4,3815.9,2.62061374]
[1760190223687,0.001,3816.4,3815.9,5.01944924]
[1760190223888,0.001,3816.4,3815.9,5.00641374]
[1760190224207,0.001,3816.4,3815.9,5.76912617]
[1760190224987,0.001,3816.4,3815.9,20.26912617]
[1760190228090,0.001,3816.4,3816.3,2.62033907]
[1760190228410,0.001,3816.4,3816.3,21.49896179]
[1760190228593,0.001,3816.4,3816.3,21.95173316]
[1760190228788,0.001,3816.4,3816.3,24.42988988]
[1760190229124,0.001,3816.4,3816.3,38.92988988]
[1760190232400,0.001,3816.4,3816.3,39.06028988]
[1760190232752,0.001,3816.4,3816.3,39.48778988]
[1760190233925,0.001,3816.4,3816.3,39.06028988]
[1760190235626,0.001,3816.4,3816.3,17.25073907]
[1760190235827,0.001,3816.4,3814.5,3.05362429]
[1760190236015,0.764,3816.3,3815.9,2.62061112]
[1760190236214,0.1304,3815.8,3815.7,2.6207511]
[1760190236525,0.764,3815.8,3815.7,3.0865511]
[1760190236730,0.764,3815.8,3815.7,2.6207511]
[1760190237135,0.6336,3815.7,3815.6,2.62081979]
[1760190237311,0.1304,3815.8,3815.7,2.6207511]
[1760190238055,0.1304,3815.8,3815.6,2.62081065]
[1760190238056,0.6336,3815.7,3815.6,2.62081065]
[1760190238232,0.6336,3815.7,3815.5,2.62084601]
[1760190238434,0.6336,3815.4,3815.3,2.62096879]
[1760190240738,0.4621,3815.4,3814.7,2.62137855]
[1760190240927,0.66636282,3815.3,3813.9,0.002]
[1760190241244,0.6336,3815.1,3814.5,2.62155964]
[1760190241410,0.6336,3814.9,3814.3,0.4526]
[1760190241615,0.4603,3816.4,3815.6,2.62081103]
[1760190241852,0.6336,3815.6,3814.6,1.92]
[1760190242052,0.6336,3815.4,3815.0,2.62123037]
[1760190242349,1.0902,3815.4,3814.7,14.5]
[1760190242556,1.0902,3815.4,3814.7,2.62143802]
[1760190242752,1.0902,3815.4,3814.5,2.62157556]
[1760190243069,1.0902,3815.4,3813.0,2.62257372]
[1760190243070,0.6336,3815.2,3813.9,14.502]
[1760190243214,0.6336,3815.0,3814.2,2.6217775]
[1760190243416,0.1882,3815.7,3813.9,0.002]
[1760190243417,0.6336,3814.8,3813.9,0.002]
[1760190243644,0.48936625,3814.9,3813.9,0.002]
[1760190243645,0.6336,3814.2,3813.9,0.002]
[1760190243925,0.6336,3814.0,3813.9,0.002]
[1760190244132,1.0902,3814.0,3813.9,0.002]
[1760190244812,0.66637399,3814.0,3813.9,0.002]
[1760190245018,0.6336,3814.5,3813.9,0.002]
[1760190245246,0.6336,3814.3,3813.9,0.002]
[1760190245443,2.3766,3814.6,3813.9,0.002]
[1760190245444,0.6336,3814.1,3813.9,0.002]
[1760190245650,0.4566,3814.3,3813.9,2.62397454]
[1760190245849,0.6336,3814.6,3814.1,2.62182421]
[1760190246031,0.6336,3814.4,3814.0,2.62191396]
[1760190246232,4.54095453,3815.5,3813.9,0.002]
[1760190246233,0.6336,3814.2,3813.9,2.62397199]
[1760190246563,1.0902,3814.2,3813.9,2.62397199]
[1760190247356,1.0902,3814.2,3813.9,0.002]
[1760190247746,1.0902,3814.2,3813.9,2.62398071]
[1760190248179,0.6336,3814.5,3813.9,2.62398071]
[1760190248836,0.071,3828.3,3813.9,2.62398071]
[1760190248837,0.4566,3815.3,3813.9,0.002]
[1760190249035,0.66636368,3815.2,3813.9,0.002]
[1760190249236,0.66636368,3815.2,3814.1,2.62184307]
[1760190249237,0.6336,3814.8,3814.1,2.62184307]
[1760190249538,0.6336,3814.8,3814.3,2.62167334]
[1760190249756,0.6336,3814.6,3814.2,2.62177092]
[1760190250037,0.6336,3814.6,3813.9,0.002]
[1760190250038,1.0902,3814.6,3813.9,0.002]
[1760190250239,1.0902,3814.6,3814.2,2.62176907]
[1760190250890,0.6336,3814.1,3813.9,0.002]
[1760190251046,0.1304,3814.2,3813.9,0.002]
[1760190251047,3.28829323,3814.0,3813.9,0.002]
[1760190251254,3.74489323,3814.0,3813.9,0.002]
[1760190251451,1.12297399,3814.0,3813.9,0.002]
[1760190252046,1.0902,3814.0,3813.9,0.002]
[1760190252446,0.6336,3814.0,3813.9,0.002]
[1760190254349,0.6336,3814.0,3813.9,2.62398799]
[1760190254574,0.6336,3814.0,3813.9,0.002]
[1760190257581,0.6336,3814.0,3813.9,3.08965785]
[1760190257890,1.2206,3814.0,3813.9,0.002]
[1760190260104,1.25337399,3814.0,3813.9,0.002]
[1760190260314,1.2206,3814.0,3813.9,0.002]
[1760190261299,0.764,3814.0,3813.9,2.62398799]
[1760190262212,0.1304,3814.0,3813.9,3.60139505]
[1760190262524,0.1304,3814.0,3813.9,3.61446491]
[1760190263112,0.1304,3814.0,3813.9,3.60139505]
[1760190263317,0.1304,3814.0,3813.9,3.07658799]
[1760190263477,0.764,3814.0,3813.9,3.07658799]
[1760190263784,0.6336,3814.0,3813.9,0.002]
[1760190264678,2.65469323,3814.0,3813.9,0.002]
[1760190264883,3.74489323,3814.0,3813.9,0.002]
[1760190267916,5.66489323,3814.0,3813.9,0.002]
[1760190268117,1.92,3813.9,3812.0,0.4526]
[1760190268329,0.4893757,3813.8,3812.5,2.62289631]
[1760190268631,0.4893757,3813.8,3812.6,2.62286576]
[1760190268632,0.6336,3813.2,3812.6,2.62286576]
[1760190269133,2.62218976,3813.7,3813.0,2.62259803]
[1760190269134,0.6336,3813.7,3813.0,2.62259803]
[1760190269331,0.6336,3813.7,3812.6,0.4526]
[1760190269332,0.6336,3813.7,3812.8,0.01308189]
[1760190269546,0.6336,3813.8,3812.8,0.01308189]
[1760190269837,0.03277656,3813.7,3813.0,2.62257896]
[1760190270130,0.6336,3813.6,3812.9,2.62266295]
[1760190270331,0.6336,3813.4,3812.9,2.62266295]
[1760190270503,0.6336,3813.4,3812.6,3.07543091]
[1760190270504,0.6336,3813.4,3812.6,0.4526]
[1760190270699,0.6336,3813.6,3812.6,0.4526]
[1760190270899,0.6336,3813.4,3812.6,0.4526]
[1760190271102,0.6336,3813.4,3813.1,2.62252973]
[1760190271315,0.6336,3813.6,3813.1,2.62252973]
[1760190271525,0.6336,3813.6,3812.6,0.4526]
[1760190271526,0.6336,3813.8,3812.6,0.4526]
[1760190271828,0.6336,3813.6,3813.0,2.62255386]
[1760190272049,0.6336,3813.6,3813.1,2.62251611]
[1760190272334,0.6336,3814.2,3813.5,2.62226301]
[1760190272508,0.03277313,3814.1,3813.5,2.62226301]
[1760190272714,0.6336,3814.0,3813.5,2.62226301]
[1760190272912,0.6336,3814.0,3813.2,0.48558051]
[1760190272913,0.4566,3814.4,3813.2,0.48558051]
[1760190273119,0.4566,3814.4,3813.8,2.62205492]
[1760190273433,1.92,3814.7,3813.3,14.51307364]
[1760190273768,2.3766,3814.8,3813.4,3.10789031]
[1760190273900,0.1304,3814.1,3814.0,2.62186187]
[1760190274234,0.764,3814.1,3814.0,2.62186187]
[1760190274527,0.1304,3814.1,3814.0,2.62186187]
[1760190275530,2.62081979,3815.6,3814.0,3.09436187]
[1760190275750,0.1304,3814.5,3814.1,3.62822497]
[1760190275930,0.1304,3814.5,3814.4,2.62164429]
[1760190276235,0.6475,3815.9,3815.1,2.62116042]
[1760190276431,0.6475,3815.9,3814.4,2.63470624]
[1760190276432,0.66635853,3815.8,3815.0,2.62122104]
[1760190276622,0.1304,3815.0,3814.7,0.4725]
[1760190276821,0.1304,3815.0,3814.9,2.62130068]
[1760190277033,0.1304,3815.0,3814.9,3.09380068]
[1760190277534,0.001,3816.0,3814.9,0.48555267]
[1760190277833,0.1304,3815.3,3815.2,2.62109456]
[1760190278252,0.001,3816.0,3815.8,2.62066388]
[1760190278606,0.001,3816.0,3815.6,0.01303721]
[1760190278806,0.001,3816.0,3815.9,2.62061374]
[1760190279331,0.001,3816.0,3815.9,3.09311374]
[1760190279709,0.6346,3816.0,3815.9,3.09311374]
[1760190280943,0.001,3816.0,3815.9,3.09311374]
[1760190281439,0.6346,3816.0,3815.9,3.10614924]
[1760190281645,0.6346,3816.0,3815.9,3.09311374]
[1760190282048,0.6346,3816.0,3815.9,3.10614924]
[1760190283762,0.001,3816.0,3815.9,5.02614924]
[1760190284063,0.001,3816.0,3815.9,20.29084124]
[1760190284675,0.001,3816.0,3815.9,19.51311374]
[1760190284828,0.001,3816.0,3815.9,1.92]
[1760190285380,0.001,3816.0,3815.9,4.54061374]
[1760190285571,0.001,3816.0,3815.7,2.6207457]
[1760190286569,0.001,3816.0,3815.9,2.62061374]
[1760190287069,0.001,3816.0,3815.8,2.62068086]
[1760190288759,0.001,3816.0,3815.9,2.62061374]
[1760190288949,0.001,3816.0,3809.6,19.80501631]
[1760190288950,0.6336,3815.8,3814.4,0.4747]
[1760190289150,0.6336,3815.6,3815.1,2.62109572]
[1760190289349,0.6336,3815.4,3814.8,0.4747]
[1760190289570,0.6336,3815.4,3815.2,2.62104851]
[1760190289766,0.6336,3815.8,3815.2,2.62104851]
[1760190289960,0.6336,3815.6,3815.2,2.62104851]
[1760190290283,0.6336,3815.6,3815.3,2.62101442]
[1760190290448,0.6336,3815.6,3815.3,2.62102305]
[1760190290645,0.6336,3815.6,3815.1,2.62109552]
[1760190290846,0.6336,3815.6,3814.6,1.92]
[1760190290847,0.6336,3815.4,3814.6,1.92]
[1760190291069,0.6336,3815.2,3814.9,2.6212825]
[1760190291285,0.6336,3815.2,3814.6,4.54150614]
[1760190291447,2.62142217,3814.8,3814.0,2.62190506]
[1760190291653,0.6336,3815.0,3813.4,0.4747]
[1760190291654,1.09896797,3814.7,3813.4,0.4747]
[1760190291861,0.66636797,3814.7,3814.4,2.62163542]
[1760190292356,0.66636797,3814.7,3814.3,2.62169572]
[1760190292878,0.66636797,3814.7,3814.4,2.62161678]
[1760190293467,0.6336,3814.5,3814.1,2.6218505]
[1760190293671,0.6336,3814.5,3814.2,2.62176897]
[1760190293866,0.6336,3814.5,3813.7,0.4747]
[1760190293867,0.6336,3814.7,3814.3,2.6216449]
[1760190294087,0.6336,3814.1,3813.7,0.4747]
[1760190294266,0.6336,3814.1,3814.0,2.62191924]
[1760190294471,0.6336,3814.1,3814.0,3.09661924]
[1760190295668,0.1304,3814.2,3814.1,2.6218505]
[1760190295886,0.764,3814.2,3814.1,3.0965505]
[1760190296602,0.764,3814.2,3814.1,2.6218505]
[1760190296901,0.764,3814.2,3814.1,3.3079505]
[1760190297108,0.764,3814.2,3814.1,3.32101692]
[1760190297609,0.764,3814.2,3814.1,3.10961692]
[1760190298509,0.764,3814.2,3814.1,2.6218505]
[1760190299015,0.6336,3814.1,3813.2,2.62246931]
[1760190299308,0.4326,3814.2,3813.6,2.62213255]
[1760190299510,0.66637313,3814.1,3813.7,2.62211448]
[1760190299677,0.6336,3813.9,3813.7,2.62211448]
[1760190299885,0.4326,3813.9,3813.5,2.622211]
[1760190300083,0.4326,3813.9,3813.6,2.62219231]
[1760190300406,0.6336,3814.0,3813.8,2.62204822]
[1760190300619,2.62142981,3814.8,3813.8,2.62204822]
[1760190300620,0.6336,3814.1,3814.0,2.62191924]
[1760190300821,0.6336,3814.1,3814.0,3.08351924]
[1760190301119,0.6336,3814.9,3814.0,14.9616]
[1760190301292,3.0539694,3814.8,3814.0,2.6218938]
[1760190301479,2.62179652,3814.2,3813.3,2.62234891]
[1760190301810,2.62179652,3814.2,3811.7,2.62349601]
[1760190301811,0.6336,3814.0,3813.5,2.62225845]
[1760190302016,0.6336,3813.8,3813.6,2.62219044]
[1760190302181,0.6336,3813.8,3813.2,2.62240058]
[1760190302380,4.54128497,3815.0,3813.3,2.62234154]
[1760190302381,0.6336,3813.6,3813.3,2.62234154]
[1760190302739,0.6336,3813.6,3812.5,2.62288411]
[1760190302740,0.6336,3813.4,3812.5,0.4616]
[1760190303015,0.6336,3813.2,3811.8,14.5]
[1760190303197,0.6336,3813.7,3811.9,0.47469668]
[1760190303377,0.6336,3813.7,3813.1,2.62250828]
[1760190303582,2.5536,3814.2,3813.3,2.62234728]
[1760190303790,0.4326,3814.3,3812.7,2.62278228]
[1760190303791,1.92,3813.9,3812.7,2.62278228]
[1760190304009,1.92,3813.9,3811.2,2.62382365]
[1760190304010,0.6336,3813.3,3812.6,2.62286751]
[1760190304211,0.6336,3813.1,3811.9,2.3816]
[1760190304419,0.6336,3813.1,3811.8,14.5]
[1760190304420,0.6336,3813.1,3813.0,2.62260687]
[1760190304712,0.6336,3813.6,3813.0,2.62260075]
[1760190304887,0.66637742,3813.6,3813.1,2.62252384]
[1760190305085,0.66637742,3813.6,3813.2,2.62246478]
[1760190305508,0.4326,3813.6,3812.5,0.4616]
[1760190305715,1.92,3814.4,3813.7,2.62210305]
[1760190306016,1.92,3814.4,3812.3,0.2114]
[1760190306017,0.46537141,3814.3,3812.3,0.2114]
[1760190306312,0.6336,3813.6,3813.0,2.62257313]
[1760190306479,4.97432288,3814.3,3812.4,0.47468395]
[1760190306480,0.6336,3814.0,3813.2,2.62240772]
[1760190306683,4.54172288,3814.3,3812.9,2.62262271]
[1760190306684,2.62171408,3814.3,3813.3,0.01307673]
[1760190306883,0.46537227,3814.2,3813.5,2.62220165]
[1760190307123,0.46537227,3814.2,3812.3,0.32962759]
[1760190307124,0.66637313,3814.1,3813.1,2.62253809]
[1760190307423,0.66637313,3814.1,3812.6,0.4616]
[1760190307424,0.6336,3813.9,3812.6,0.4616]
[1760190307729,0.6336,3813.7,3813.3,2.62237968]
[1760190307913,0.6336,3813.5,3813.2,2.62242351]
[1760190308217,0.4326,3813.8,3813.1,2.62249219]
[1760190308380,2.62142883,3814.8,3812.1,2.1314]
[1760190308381,0.66637656,3813.7,3813.2,0.01307914]
[1760190308586,2.5536,3814.3,3813.0,0.4616]
[1760190308895,0.6336,3813.3,3813.2,2.62246931]
[1760190309296,0.6336,3813.3,3812.0,0.4616]
[1760190309487,0.764,3812.9,3812.8,2.62272489]
[1760190311117,0.764,3812.9,3812.8,3.08432489]
[1760190311322,0.764,3812.9,3812.8,3.65635281]
[1760190311635,0.6336,3814.1,3813.5,2.62225643]
[1760190311816,0.6336,3814.1,3812.8,3.65635281]
[1760190311817,0.1304,3813.2,3813.0,2.62260687]
[1760190312140,1.92,3814.5,3813.8,2.62201736]
[1760190312296,3.05411904,3814.6,3813.8,2.62201736]
[1760190312297,0.4326,3814.6,3813.8,2.62201736]
[1760190312500,1.92,3814.8,3813.6,2.6221923]
[1760190312695,0.1304,3813.7,3813.6,3.08379425]
[1760190312896,0.6336,3813.6,3813.5,2.6221947]
[1760190313917,0.6336,3813.6,3813.5,2.62226301]
[1760190315123,0.6336,3813.6,3813.5,3.08386301]
[1760190315456,2.62080487,3815.7,3813.5,3.08386301]
[1760190315457,0.4326,3815.1,3814.1,2.62181158]
[1760190315736,0.6336,3815.0,3814.2,2.63482996]
[1760190315902,0.46536454,3815.1,3814.7,2.62138649]
[1760190316100,0.6336,3815.0,3814.7,2.62138649]
[1760190316410,0.4326,3815.1,3814.7,2.62138649]
[1760190316411,0.03276454,3815.1,3814.7,2.62138649]
[1760190316605,0.1304,3814.7,3814.6,2.6214955]
[1760190316799,0.1304,3814.7,3814.1,0.2114]
[1760190316800,0.03276454,3815.1,3814.2,2.62178176]
[1760190316999,0.764,3814.3,3814.2,2.62178176]
[1760190317231,0.764,3814.3,3814.2,4.22540511]
[1760190317405,0.764,3814.3,3814.2,3.53934041]
[1760190317727,0.764,3814.3,3814.2,2.62178176]
[1760190318135,0.764,3814.3,3814.2,3.08338176]
[1760190318725,0.764,3814.3,3814.2,3.09644646]
[1760190318901,0.6336,3814.3,3814.2,3.08338176]
[1760190319097,0.6336,3814.3,3814.2,2.62178176]
[1760190319311,0.764,3814.3,3814.2,2.62178176]
[1760190319727,0.6336,3814.2,3813.8,14.5]
[1760190319920,0.6336,3814.2,3814.1,2.6218505]
[1760190320116,0.1304,3814.3,3814.2,2.62178176]
[1760190320321,1.0662,3814.2,3813.3,0.4616]
[1760190320508,1.0662,3814.2,3813.1,0.1304]
[1760190320509,0.6336,3814.0,3813.1,0.1304]
[1760190320703,0.1304,3813.7,3813.1,0.1304]
[1760190320928,0.764,3813.7,3813.6,2.62219425]
[1760190321406,0.6336,3813.7,3813.6,2.62219425]
[1760190321714,0.764,3813.7,3813.6,2.62219425]
[1760190322541,0.6336,3813.6,3813.0,0.1304]
[1760190322844,0.1304,3813.7,3813.6,2.62219425]
[1760190323004,0.6336,3813.8,3813.6,2.62218809]
[1760190323365,2.62172076,3814.3,3812.6,0.4616]
[1760190323366,0.6336,3813.6,3812.8,1.92]
[1760190323506,0.6336,3813.6,3812.9,0.01308429]
[1760190323904,0.6336,3813.4,3812.7,14.5]
[1760190324117,0.6336,3813.2,3812.9,2.62267547]
[1760190324418,0.6336,3813.0,3812.9,2.62267547]
[1760190324636,0.6336,3813.0,3812.8,2.62273138]
[1760190325335,0.6336,3813.0,3812.9,2.62267565]
[1760190325522,0.6336,3813.4,3812.4,1.92]
[1760190325727,0.6336,3813.4,3812.9,2.62261448]
[1760190325939,0.6336,3813.2,3812.9,2.62261448]
[1760190326150,0.6336,3813.2,3812.5,0.01308911]
[1760190326356,0.6336,3813.4,3813.0,2.62255747]
[1760190326649,0.6336,3813.6,3813.2,2.62245734]
[1760190326810,0.6336,3813.6,3813.3,2.62233742]
[1760190327006,0.4326,3814.0,3813.5,2.62224683]
[1760190327007,0.6336,3813.9,3813.5,2.62224683]
[1760190327221,0.6336,3814.0,3813.5,2.62224683]
[1760190327421,1.92,3814.2,3810.9,0.002]
[1760190327422,0.4326,3814.3,3813.0,0.4616]
[1760190327622,0.4326,3814.3,3813.8,2.62203881]
[1760190327826,0.6336,3814.2,3813.8,2.62203881]
[1760190328256,0.4326,3814.3,3813.7,0.01306985]
[1760190328558,0.4326,3814.7,3813.9,2.62197197]
[1760190328872,0.6336,3814.5,3813.9,2.62197197]
[1760190329152,3.05405838,3814.7,3814.2,2.62177382]
[1760190329153,0.4326,3814.7,3814.2,2.62177382]
[1760190329481,0.001,3815.1,3814.3,0.01306161]
[1760190329640,0.03376454,3815.1,3814.4,2.62162985]
[1760190329842,3.25495159,3814.9,3813.9,2.62193587]
[1760190330030,0.6336,3814.7,3813.4,14.5]
[1760190330229,0.6336,3814.7,3814.0,2.62185779]
[1760190330230,0.03276883,3814.6,3814.0,2.62185779]
[1760190330561,0.6336,3814.5,3813.4,14.5]
[1760190330764,0.6336,3814.3,3814.2,2.62178176]
[1760190330968,0.001,3815.1,3814.4,2.62161046]
[1760190331137,2.62216646,3815.1,3814.3,2.62169675]
[1760190331477,3.01896539,3815.0,3813.5,2.62224543]
[1760190331642,3.01896539,3815.0,3813.5,0.4288]
[1760190331643,1.09896539,3815.0,3813.5,0.4288]
[1760190332240,0.6336,3814.9,3814.2,2.6217175]
[1760190332561,0.66636711,3814.8,3813.5,3.05105881]
[1760190332863,0.6336,3814.7,3814.2,2.62173909]
[1760190333066,0.03276883,3814.6,3814.2,2.62173909]
[1760190333362,0.6336,3814.5,3814.2,2.62173909]
[1760190334363,0.6336,3814.5,3814.3,2.62171209]
[1760190334560,0.6336,3814.4,3814.3,2.62171209]
[1760190334772,0.4336,3815.1,3814.4,2.6216117]
[1760190334953,0.6336,3814.0,3813.9,2.62192758]
[1760190336985,0.6336,3814.0,3813.9,3.05072758]
[1760190337488,0.6336,3814.0,3813.9,3.61800822]
[1760190337640,0.6336,3814.0,3813.9,18.11800822]
[1760190337840,0.001,3814.4,3814.3,2.62171302]
[1760190338258,0.001,3814.4,3814.3,4.983576]
[1760190338456,0.001,3814.4,3814.3,4.97051302]
[1760190338661,0.001,3814.4,3814.3,20.25088456]
[1760190341869,0.001,3814.4,3814.3,18.33088456]
[1760190342597,0.001,3814.4,3814.3,17.12171302]
[1760190343097,0.001,3814.4,3814.3,2.62171302]
[1760190344304,0.001,3814.4,3814.3,3.07181302]
[1760190346001,0.001,3814.4,3814.3,17.57181302]
[1760190348297,0.001,3814.4,3814.3,17.70221302]
[1760190348501,0.001,3814.4,3814.3,19.75575456]
[1760190348803,0.001,3814.4,3814.3,17.70221302]
[1760190349495,0.001,3814.4,3814.3,2.75211302]
[1760190349796,0.001,3814.4,3814.3,2.62171302]
[1760190350365,0.001,3814.4,3814.3,3.084876]
[1760190350805,0.001,3814.4,3814.3,2.62171302]
[1760190351103,0.001,3814.4,3814.3,3.07181302]
[1760190351272,0.001,3814.4,3814.3,5.13841754]
[1760190351601,0.001,3814.4,3814.3,5.25575456]
[1760190352374,0.001,3814.4,3814.3,3.07181302]
[1760190352771,0.001,3814.4,3814.3,2.62171302]
[1760190353191,0.001,3814.4,3814.3,3.07181302]
[1760190353472,0.001,3814.4,3814.3,2.62171302]
[1760190354195,0.001,3814.4,3814.3,3.07181302]
[1760190354391,0.001,3814.4,3814.3,17.57181302]
[1760190356803,0.001,3814.4,3814.3,2.62171302]
[1760190357255,0.001,3814.4,3812.8,0.4501]
[1760190357256,2.62198425,3814.0,3812.8,0.4501]
[1760190357553,0.46087484,3813.9,3813.3,2.62239111]
[1760190357916,0.46087484,3813.9,3812.5,3.07300363]
[1760190358140,0.46087484,3813.9,3812.6,14.5]
[1760190358312,0.03277484,3813.9,3812.6,14.5]
[1760190358512,3.05022102,3813.8,3813.0,2.62260027]
[1760190358713,0.001,3814.4,3811.6,0.6625]
[1760190358714,0.46087656,3813.7,3811.6,0.6625]
[1760190358962,0.4281,3813.6,3811.7,0.4631953]
[1760190359114,0.4281,3813.6,3812.7,2.62274534]
[1760190359521,2.62200394,3813.9,3812.7,2.62274534]
[1760190359522,0.03277828,3813.5,3812.7,2.62274534]
[1760190359848,0.001,3814.4,3813.0,2.62254068]
[1760190359849,0.4281,3813.4,3813.0,2.62254068]
[1760190360052,0.4281,3813.3,3813.0,2.62254068]
[1760190360344,0.4281,3813.3,3812.9,2.62266383]
[1760190360542,0.4281,3813.3,3812.2,0.6798]
[1760190360543,0.4281,3813.8,3813.0,0.01308464]
[1760190360731,0.4281,3813.8,3813.2,2.62245728]
[1760190360945,0.03277656,3813.7,3812.5,0.4684]
[1760190361151,0.4281,3813.8,3813.1,2.62252704]
[1760190361539,3.08306282,3813.7,3812.8,2.62268351]
[1760190361860,3.08306282,3813.7,3812.9,2.62265667]
[1760190362166,2.62227645,3813.5,3812.7,2.62277838]
[1760190362454,2.62241635,3813.3,3812.5,2.62289569]
[1760190362656,3.08335291,3813.2,3812.3,2.62302684]
[1760190362859,3.08335291,3813.2,3812.0,2.62323941]
[1760190362860,2.62268835,3812.9,3812.0,2.62323941]
[1760190363029,0.4608843,3812.8,3812.1,2.62322077]
[1760190363226,0.4608843,3812.8,3812.1,2.62319716]
[1760190363461,0.4608843,3812.8,3812.2,2.62313379]
[1760190364251,0.4281,3812.7,3811.6,14.502]
[1760190364430,0.03278602,3812.6,3811.6,14.502]
[1760190364631,0.03278602,3812.6,3812.2,2.62310541]
[1760190365047,0.4281,3812.5,3812.4,2.62301962]
[1760190365247,0.4281,3813.5,3812.8,2.62270358]
[1760190365662,0.001,3814.8,3812.9,2.62265293]
[1760190365861,0.4281,3813.9,3812.1,0.2114]
[1760190366044,2.62228066,3813.5,3812.0,2.62329485]
[1760190366236,2.62241855,3813.3,3812.6,2.6228768]
[1760190366431,3.08341186,3813.2,3812.3,2.62303094]
[1760190366636,3.05065021,3813.1,3812.3,2.62303094]
[1760190366859,3.05065021,3813.1,3812.0,2.62329485]
[1760190366860,2.65539023,3813.0,3812.2,2.6231566]
[1760190367061,0.4281,3812.9,3811.7,2.62350132]
[1760190367232,0.4281,3812.9,3812.2,2.62315723]
[1760190367233,0.1304,3812.3,3812.2,2.62315723]
[1760190370272,0.1304,3812.3,3811.8,14.5]
[1760190371246,0.1304,3812.3,3812.2,2.62315723]
[1760190372245,0.4281,3813.5,3812.2,0.99435039]
[1760190372449,0.1304,3812.8,3812.4,2.62301962]
[1760190372768,0.1304,3812.8,3812.7,2.62281322]
[1760190373075,0.4281,3814.0,3813.1,2.62251447]
[1760190373279,2.62264866,3814.4,3812.1,0.2114]
[1760190373280,0.001,3814.4,3813.9,2.62198472]
[1760190373577,0.4281,3814.3,3813.8,2.6220024]
[1760190373743,0.001,3814.4,3814.0,2.62188755]
[1760190373943,0.001,3814.4,3813.3,14.5]
[1760190373944,0.4281,3814.3,3813.3,14.5]
[1760190374176,0.03277227,3814.2,3813.3,14.5]
[1760190374361,0.4281,3814.1,3812.4,0.4684]
[1760190374567,0.03277399,3814.0,3812.4,0.4684]
[1760190374963,0.4281,3813.9,3813.2,2.62242182]
[1760190375162,0.4281,3813.9,3812.6,2.62288202]
[1760190375163,0.0327757,3813.8,3812.5,14.5]
[1760190375370,0.0327757,3813.8,3812.6,3.09128202]
[1760190375569,0.03277313,3814.1,3813.2,2.62242938]
[1760190375881,0.4281,3813.8,3813.5,2.62225506]
[1760190376285,0.4291,3814.4,3813.6,2.6221519]
[1760190376583,0.4291,3814.4,3813.8,2.62200877]
[1760190376754,0.03277141,3814.3,3813.0,0.4684]
[1760190376955,0.03277141,3814.3,3813.4,2.62231583]
[1760190377597,0.03277141,3814.3,3813.7,2.62212389]
[1760190378092,0.03277141,3814.3,3813.0,0.4684]
[1760190378282,0.4281,3814.2,3812.7,0.4684]
[1760190378482,0.03277313,3814.1,3813.4,2.6222737]
[1760190378682,0.4511239,3814.1,3812.7,3.09118653]
[1760190378887,0.4281,3814.0,3813.4,2.62231822]
[1760190379183,0.03277484,3813.9,3813.4,2.62231822]
[1760190379371,0.03277484,3813.9,3813.5,2.62224375]
[1760190379886,0.4281,3813.8,3813.5,2.62224375]
[1760190380292,2.65456705,3814.2,3814.0,0.10731537]
[1760190380867,2.6218505,3814.1,3814.0,0.10731537]
[1760190381463,0.03277313,3814.1,3814.0,0.10731537]
[1760190384179,2.62173084,3814.3,3814.0,0.10731537]
[1760190384578,0.001,3814.4,3814.0,0.10731537]
[1760190384778,2.62177166,3814.3,3814.0,0.10731537]
[1760190385398,0.001,3814.4,3814.0,0.10731537]
[1760190386576,2.62183848,3814.2,3814.0,0.10731537]
[1760190386778,0.03377313,3814.1,3814.0,0.10731537]
[1760190387180,0.001,3814.1,3814.0,0.10731537]
[1760190387569,0.03377313,3814.1,3814.0,0.10731537]
[1760190387972,0.001,3814.1,3814.0,0.10731537]
[1760190390109,0.001,3814.1,3814.0,2.72923461]
[1760190392174,0.1304,3814.0,3813.8,2.62204095]
[1760190392373,0.001,3814.1,3813.8,2.62204095]
[1760190392374,0.001,3814.1,3814.0,2.62191924]
[1760190392774,0.001,3814.1,3814.0,3.08011924]
[1760190393878,0.001,3814.1,3814.0,3.21051924]
[1760190394378,0.001,3814.1,3814.0,17.71051924]
[1760190397689,0.001,3814.1,3814.0,2.62191924]
[1760190398009,0.001,3814.1,3813.5,0.23756809]
[1760190398203,0.001,3814.1,3814.0,2.62191924]
[1760190398735,0.1304,3814.0,3813.6,2.62213109]
[1760190398896,0.001,3814.1,3813.9,2.62193507]
[1760190399099,0.001,3814.1,3814.0,2.62191924]
[1760190399811,0.1304,3814.0,3813.8,2.62199876]
[1760190400127,0.1304,3813.8,3813.6,2.6221792]
[1760190400287,0.001,3814.1,3813.7,2.62212549]
[1760190400491,0.001,3814.1,3813.5,0.002]
[1760190400492,0.001,3814.1,3813.8,2.62204032]
[1760190401002,0.1304,3813.8,3813.6,2.62219425]
[1760190401199,0.001,3814.1,3814.0,2.62191924]
[1760190402045,0.1304,3814.0,3813.9,2.62198799]
[1760190402208,0.001,3814.1,3814.0,2.62191924]
[1760190403203,0.001,3814.1,3814.0,3.59499414]
[1760190405417,0.001,3814.1,3814.0,18.09499414]
[1760190405622,0.001,3814.1,3814.0,18.22739414]
[1760190406503,1.0,3814.7,3814.6,2.62150684]
[1760190406942,1.0,3814.7,3814.6,3.19830684]